bitfinex-derivatives/quotes_ETHF0:USTF0_20250616
["timestamp","ask_amount","ask_price","bid_price","bid_amount"]
[1750081531319,6.2576031,2630.4,2630.3,0.11098338]
[1750081531716,1.90082,2630.0,2629.4,3.2078]
[1750081532021,4.9391631,2629.5,2629.4,3.2078]
[1750081532221,4.1787031,2629.5,2629.4,3.96829]
[1750081532422,0.6451,2629.9,2629.8,0.76037]
[1750081532622,0.76032,2630.0,2629.9,0.76033]
[1750081532815,4.1787031,2629.8,2629.7,3.2078]
[1750081533016,4.9390731,2629.8,2629.7,3.2078]
[1750081533323,4.1787031,2629.8,2629.7,3.9682]
[1750081533522,0.00567114,2630.1,2629.7,3.26026265]
[1750081533827,4.1787031,2629.8,2629.7,4.02064265]
[1750081534129,4.9390731,2629.8,2629.7,0.05246265]
[1750081534318,5.00644716,2629.8,2629.7,0.05246265]
[1750081534722,0.06737406,2629.8,2629.7,2.04297359]
[1750081535227,5.00644716,2629.8,2629.7,0.05246265]
[1750081536624,4.1787031,2629.7,2629.1,3.2078]
[1750081536930,0.76055,2629.2,2629.1,3.2078]
[1750081537223,1.90145,2629.1,2628.6,2.61412689]
[1750081537418,4.1787031,2628.7,2628.4,1.11959091]
[1750081537617,4.1787031,2628.5,2628.3,1.12530052]
[1750081537825,1.2697,2628.6,2628.4,0.76078]
[1750081538026,1.2697,2628.6,2628.3,0.76649961]
[1750081538027,4.1787031,2628.4,2628.3,0.76649961]
[1750081538225,4.1787031,2628.4,2628.3,1.99352491]
[1750081538428,4.9394831,2628.4,2628.3,1.23273491]
[1750081538615,9.4169831,2628.4,2628.3,1.23273491]
[1750081538817,9.4169831,2628.4,2628.3,0.00570961]
[1750081539220,1.84970735,2628.1,2627.5,1.11959091]
[1750081539527,0.76098,2627.7,2627.6,1.22937555]
[1750081539725,12.66136506,2627.9,2627.3,1.11959091]
[1750081539726,4.1787031,2627.4,2627.3,1.11959091]
[1750081539925,4.1787031,2627.4,2627.3,1.2294854]
[1750081540127,1.2663,2628.0,2627.3,4.4372854]
[1750081540329,4.4298,2628.8,2627.9,3.2078]
[1750081540330,9.45927467,2628.7,2627.9,3.2078]
[1750081540630,4.1787031,2628.1,2628.0,2.34907631]
[1750081540826,0.76087,2628.1,2628.0,2.34907631]
[1750081541028,17.60093816,2628.1,2628.0,1.2294854]
[1750081541327,0.76095,2627.8,2627.7,1.11959091]
[1750081541528,8.1474531,2627.8,2627.7,1.11959091]
[1750081541733,0.76104,2627.5,2627.4,1.12530052]
[1750081542032,4.9397431,2627.5,2627.4,1.12530052]
[1750081542228,4.9397431,2627.5,2627.4,0.00570961]
[1750081542731,8.1475431,2627.5,2627.4,0.00570961]
[1750081543417,8.1475431,2627.5,2627.0,1.11959091]
[1750081543418,0.76116,2627.1,2627.0,1.11959091]
[1750081543618,0.76116,2627.1,2626.9,1.11959091]
[1750081543619,0.76118,2627.0,2626.9,1.11959091]
[1750081543835,4.9399131,2626.9,2626.8,1.11959091]
[1750081544332,0.76127,2626.7,2626.6,3.21350961]
[1750081544525,4.1787031,2626.7,2626.6,5.10213204]
[1750081544727,4.9399731,2626.7,2626.6,4.34083204]
[1750081544930,4.9399731,2626.7,2626.6,5.10213204]
[1750081545132,4.9399731,2626.7,2626.6,4.34083204]
[1750081545329,4.9399731,2626.7,2626.6,3.21350961]
[1750081545834,4.9399731,2626.7,2626.6,0.00570961]
[1750081546338,14.39353816,2626.7,2626.6,0.00570961]
[1750081546830,22.60133816,2626.7,2626.6,0.00570961]
[1750081547033,0.76143,2626.2,2626.0,1.12732243]
[1750081547226,0.76143,2626.2,2626.0,0.76146]
[1750081547227,4.1787031,2626.1,2626.0,0.76146]
[1750081547421,4.1787031,2626.1,2625.8,4.33512243]
[1750081547628,4.1787031,2626.1,2626.0,0.76147]
[1750081547835,4.63518,2626.7,2626.5,0.76131]
[1750081548024,4.1787031,2626.6,2626.5,0.76131]
[1750081548227,0.76136,2626.4,2626.3,0.00570961]
[1750081548428,4.9400631,2626.4,2626.3,0.00570961]
[1750081548623,8.1478631,2626.4,2626.3,0.00570961]
[1750081548828,8.2078,2626.4,2625.5,1.12732243]
[1750081549034,7.38649349,2625.6,2625.2,1.12732243]
[1750081549333,4.17869349,2625.3,2624.8,3.2078]
[1750081549524,0.6433,2625.8,2625.1,3.2078]
[1750081549726,4.17869349,2625.6,2625.4,0.76163]
[1750081549924,4.17869349,2625.5,2625.2,0.00384487]
[1750081550126,4.94037349,2625.3,2625.2,0.00384487]
[1750081550335,4.17869349,2625.3,2625.2,0.00384487]
[1750081550535,0.76161,2625.6,2625.4,0.76164]
[1750081550728,4.94032349,2625.5,2625.3,0.76167]
[1750081550928,0.76165,2625.4,2625.2,0.76553487]
[1750081551229,0.76168,2625.3,2625.2,0.00384487]
[1750081551436,4.94037349,2625.3,2625.2,0.00384487]
[1750081551932,3.2078,2625.5,2625.2,0.00384487]
[1750081552232,4.17869349,2625.3,2625.2,0.76553487]
[1750081552737,3.2078,2625.5,2625.2,0.76553487]
[1750081553036,3.2078,2625.5,2625.2,0.00384487]
[1750081553037,4.94037349,2625.3,2625.2,0.00384487]
[1750081553629,5.76168,2625.3,2625.2,4.87e-06]
[1750081553833,5.6733,2625.3,2623.8,5.8797]
[1750081554031,4.17868862,2624.2,2623.8,5.1176]
[1750081554238,4.17868862,2624.2,2624.0,0.76203]
[1750081554538,4.17868862,2623.9,2623.5,3.97]
[1750081554734,4.17868862,2623.7,2623.6,0.76216]
[1750081555031,4.17868862,2623.9,2623.5,3.2078]
[1750081555236,4.17868862,2623.7,2623.5,3.96999]
[1750081555427,4.17868862,2623.7,2623.6,0.76217]
[1750081557036,4.94082862,2623.7,2623.5,3.2078]
[1750081557342,4.17868862,2623.6,2623.5,3.2078]
[1750081557537,4.94085862,2623.6,2623.5,3.2078]
[1750081557942,4.17868862,2623.6,2623.2,3.2078]
[1750081558241,4.94094862,2623.3,2623.2,3.2078]
[1750081558540,4.17868862,2623.3,2623.2,3.97009]
[1750081558836,0.76213,2623.8,2623.2,5.11352]
[1750081559037,0.00570961,2624.0,2623.9,0.76208]
[1750081559337,3.96961,2624.9,2623.9,9.45356506]
[1750081559530,1.9037,2625.2,2624.8,3.2078]
[1750081559842,4.17868862,2624.9,2624.8,3.96962]
[1750081560236,0.76746961,2625.1,2624.8,3.2078]
[1750081560440,4.17868862,2624.9,2624.6,0.00570961]
[1750081560734,9.45927467,2625.1,2624.6,0.00570961]
[1750081560735,4.17868862,2624.7,2624.6,0.00570961]
[1750081560939,4.17868862,2624.9,2624.8,0.76182]
[1750081561141,0.76182,2624.9,2624.7,0.76183]
[1750081561340,0.76181,2624.9,2624.8,0.76182]
[1750081561542,0.00570961,2625.1,2624.8,3.2078]
[1750081561742,4.94047862,2624.9,2624.8,3.2078]
[1750081562237,0.76179,2624.9,2624.8,3.2078]
[1750081562543,4.94047862,2624.9,2624.8,3.2078]
[1750081562737,4.94047862,2624.9,2624.6,0.00570961]
[1750081562738,0.76185,2624.7,2624.6,0.00570961]
[1750081562935,4.94053862,2624.7,2624.6,0.00570961]
[1750081563638,6.21523862,2624.7,2624.6,0.00570961]
[1750081563940,0.00570961,2625.1,2624.6,5.00570961]
[1750081564134,0.00570961,2625.1,2624.8,3.2078]
[1750081564546,0.00570961,2625.1,2624.6,0.00570961]
[1750081564547,0.76185,2624.7,2624.6,0.00570961]
[1750081564736,4.94053862,2624.7,2624.6,0.00570961]
[1750081565838,0.07308367,2625.1,2624.9,0.76178]
[1750081566034,4.17868862,2624.7,2624.6,0.67520961]
[1750081566240,4.94052862,2624.8,2624.6,0.67520961]
[1750081566443,0.07308367,2625.1,2625.0,0.76176]
[1750081566745,0.07308367,2625.1,2625.0,3.96956]
[1750081566952,5.01351229,2625.1,2625.0,3.2078]
[1750081567143,0.76185,2624.7,2624.6,0.67520961]
[1750081567339,4.94053862,2624.7,2624.6,1.18611006]
[1750081567552,4.94053862,2624.7,2624.6,0.00570961]
[1750081567741,0.07308367,2625.1,2624.6,3.21350961]
[1750081567941,4.25177229,2625.1,2624.7,0.76183]
[1750081568144,4.25177229,2625.1,2624.7,1.2556]
[1750081568343,0.76181,2624.9,2624.8,1.94516007]
[1750081568543,0.76181,2624.9,2624.8,1.18334007]
[1750081568744,0.76181,2624.9,2624.6,3.21350961]
[1750081568745,0.76185,2624.7,2624.6,3.21350961]
[1750081568940,4.94053862,2624.7,2624.6,1.18910024]
[1750081569447,4.94053862,2624.7,2624.6,0.00570961]
[1750081569845,6.20243862,2624.7,2624.6,0.00570961]
[1750081570038,11.20243862,2624.7,2624.6,9.61e-06]
[1750081570541,24.54918905,2624.7,2624.6,9.61e-06]
[1750081570744,6.20243862,2624.7,2624.6,9.61e-06]
[1750081570936,0.6498,2624.8,2624.6,9.61e-06]
[1750081570937,0.07308367,2625.1,2624.7,1.90464]
[1750081571142,0.07308367,2625.1,2625.0,0.76176]
[1750081571345,0.83482367,2625.1,2625.0,2.31370744]
[1750081571548,5.01351229,2625.1,2625.0,1.18638501]
[1750081571743,19.50287272,2625.1,2624.7,1.12732243]
[1750081572048,19.50287272,2625.1,2624.6,9.61e-06]
[1750081572049,0.76185,2624.7,2624.6,9.61e-06]
[1750081572246,4.94053862,2624.7,2624.6,9.61e-06]
[1750081576749,0.68618367,2625.1,2624.8,0.76181]
[1750081576949,0.07308367,2625.1,2625.0,1.13442031]
[1750081577141,0.07308367,2625.1,2625.0,3.96956]
[1750081577449,0.07308367,2625.1,2625.0,5.24156]
[1750081577951,0.6548,2625.7,2625.0,9.4798]
[1750081578152,3.2078,2625.9,2625.6,1.51275041]
[1750081578350,0.76159,2625.6,2625.5,2.26935339]
[1750081578748,4.17868862,2625.6,2625.5,3.03097339]
[1750081578949,0.76162,2625.5,2625.4,3.2078]
[1750081579247,0.76168,2625.3,2625.2,3.02580452]
[1750081579445,4.94035862,2625.4,2625.2,3.02580452]
[1750081579759,0.76168,2625.3,2625.2,3.78749452]
[1750081579947,0.76166,2625.4,2625.2,3.78748452]
[1750081580248,0.06737406,2625.6,2625.2,3.02580452]
[1750081580555,0.06737406,2625.6,2625.5,6.24022628]
[1750081580854,0.00570961,2625.8,2625.7,0.76156]
[1750081581251,0.00570961,2625.8,2625.7,3.78736452]
[1750081581446,0.00570961,2625.8,2625.7,0.76156]
[1750081581652,0.76156,2625.7,2625.6,3.02610753]
[1750081581847,0.76159,2625.6,2625.5,6.23390753]
[1750081582055,0.76162,2625.5,2625.4,2.26990635]
[1750081582246,4.94030862,2625.5,2625.4,2.26990635]
[1750081582449,0.76166,2625.4,2625.2,6.99560753]
[1750081582650,0.76168,2625.3,2625.2,6.23390753]
[1750081582949,0.06737406,2625.6,2625.2,6.23390753]
[1750081583154,0.82896406,2625.6,2625.5,2.26966651]
[1750081583748,0.82896406,2625.6,2625.5,3.45902737]
[1750081583949,0.82896406,2625.6,2625.5,1.95098086]
[1750081584144,0.82896406,2625.6,2625.5,1.18936086]
[1750081584553,0.82896406,2625.6,2625.5,2.70200066]
[1750081584946,5.00765268,2625.6,2625.5,2.70200066]
[1750081585149,8.21545268,2625.6,2625.5,2.32392975]
[1750081585347,9.52785268,2625.6,2625.5,2.32392975]
[1750081586258,0.76174,2625.1,2625.0,1.51312047]
[1750081586555,0.76185,2624.7,2624.6,2.26967612]
[1750081586751,4.94053862,2624.7,2624.6,2.26967612]
[1750081586953,0.76178,2625.0,2624.8,0.76181]
[1750081587156,1.90413,2625.4,2624.9,3.96957]
[1750081587157,0.76175,2625.1,2624.9,3.96957]
[1750081587355,0.76173,2625.2,2624.9,3.2078]
[1750081587554,0.76173,2625.2,2625.0,0.76174]
[1750081587858,0.7617,2625.3,2625.1,0.76174]
[1750081588052,0.76174,2625.1,2625.0,4.25906651]
[1750081588254,0.76174,2625.1,2625.0,2.94086651]
[1750081588452,0.76174,2625.1,2625.0,2.26966651]
[1750081588657,1.9519,2625.5,2625.0,2.27316996]
[1750081588852,0.76168,2625.3,2625.2,0.7617]
[1750081589055,0.76171,2625.2,2625.1,2.27316996]
[1750081589245,4.17868862,2625.4,2625.1,2.27316996]
[1750081589447,0.06737406,2625.6,2625.3,3.2078]
[1750081589655,0.06737406,2625.6,2625.5,0.76162]
[1750081590074,0.76142,2626.2,2626.1,0.76144]
[1750081590249,0.76142,2626.2,2626.1,3.2078]
[1750081590555,0.76137,2626.4,2626.1,3.2078]
[1750081590759,0.76134,2626.5,2626.3,0.76137]
[1750081591058,0.7614,2626.3,2626.1,6.24775602]
[1750081591247,4.94006862,2626.4,2626.1,3.21350961]
[1750081591449,0.76139,2626.3,2626.1,3.97492961]
[1750081591650,4.17868862,2626.4,2626.3,0.76139]
[1750081591865,4.17868862,2626.4,2626.1,4.46970961]
[1750081592054,1.28620961,2626.7,2626.1,4.46970961]
[1750081592254,4.17868862,2626.5,2626.4,0.76134]
[1750081592448,0.76139,2626.3,2626.1,5.14100961]
[1750081592653,4.17868862,2626.4,2626.2,0.76142]
[1750081593060,0.76134,2626.5,2626.1,5.14100961]
[1750081593255,4.17868862,2626.4,2626.1,5.14100961]
[1750081593458,0.76134,2626.5,2626.4,0.76136]
[1750081593758,4.94004862,2626.4,2626.3,0.76137]
[1750081593958,0.76134,2626.5,2626.3,0.76137]
[1750081594153,0.76134,2626.5,2626.1,5.14100961]
[1750081594354,0.06737406,2626.4,2626.3,0.76137]
[1750081594557,0.82873406,2626.4,2626.2,2.0345]
[1750081594853,0.76139,2626.3,2626.2,1.2731]
[1750081595059,0.76142,2626.2,2626.1,0.00570961]
[1750081595264,6.17780862,2626.2,2626.1,0.00570961]
[1750081595954,0.7615,2625.9,2625.8,3.2078]
[1750081596255,0.76162,2625.5,2625.4,3.2078]
[1750081596453,0.76149,2626.0,2625.5,1.90406]
[1750081596652,1.90339,2626.5,2625.8,3.2078]
[1750081596853,0.76131,2626.6,2626.3,0.76139]
[1750081597053,0.00570961,2626.7,2626.3,0.76139]
[1750081597750,0.00570961,2626.7,2626.3,2.04299]
[1750081598164,0.00570961,2626.7,2626.6,0.7613]
[1750081598364,0.00570961,2626.7,2626.6,1.90298331]
[1750081599159,1.2621,2627.5,2627.0,0.76116]
[1750081599458,0.76121,2626.9,2626.8,3.2078]
[1750081600358,4.93989862,2626.9,2626.8,3.2078]
[1750081600659,0.7613,2626.6,2626.5,3.2078]
[1750081600963,0.7613,2626.6,2626.5,4.34869888]
[1750081601154,4.17868862,2626.6,2626.1,0.00570961]
[1750081601353,1.9032,2626.7,2626.1,0.00570961]
[1750081601354,4.94007862,2626.3,2626.2,1.14090409]
[1750081601649,0.76139,2626.3,2626.2,1.14090409]
[1750081601855,4.94007862,2626.3,2626.2,1.14090409]
[1750081602050,5.51818862,2626.3,2626.2,1.90232409]
[1750081602261,6.27957862,2626.3,2626.2,1.14090409]
[1750081602959,0.76124,2626.8,2626.7,0.76124]
[1750081603160,0.76124,2626.8,2626.7,1.14090409]
[1750081603357,0.76124,2626.8,2626.1,3.21350961]
[1750081603358,0.76142,2626.2,2626.1,3.21350961]
[1750081603560,14.30891433,2626.2,2626.1,0.00570961]
[1750081603862,14.30891433,2626.2,2625.1,3.2078]
[1750081603863,0.76171,2625.2,2625.1,3.2078]
[1750081604160,0.76171,2625.2,2624.8,3.2078]
[1750081604161,0.76179,2624.9,2624.8,3.2078]
[1750081604368,4.17868862,2624.8,2624.7,3.2078]
[1750081604658,4.94053862,2624.8,2624.7,3.2078]
[1750081604861,0.76181,2624.9,2624.7,3.2078]
[1750081605074,0.00570961,2625.0,2624.7,3.2078]
[1750081605075,4.94050862,2624.8,2624.7,3.2078]
[1750081605256,0.76182,2624.8,2624.7,3.2078]
[1750081605857,0.76182,2624.8,2624.5,1.39349961]
[1750081605858,0.76188,2624.6,2624.5,0.00570961]
[1750081606263,4.94056862,2624.6,2624.5,0.00570961]
[1750081607552,6.19646862,2624.6,2624.5,0.00570961]
[1750081607961,1.91017961,2625.0,2624.5,0.00570961]
[1750081607962,0.00570961,2625.0,2624.5,0.00570961]
[1750081608156,4.18439823,2625.0,2624.8,3.2078]
[1750081608361,4.18439823,2625.0,2624.8,3.96961]
[1750081608960,4.94616823,2625.0,2624.8,3.2078]
[1750081609268,4.94047862,2624.9,2624.8,3.2078]
[1750081609467,4.17868862,2624.9,2624.5,3.21350961]
[1750081609764,4.94056862,2624.6,2624.5,0.00570961]
[1750081609968,4.17868862,2624.6,2623.6,6.11512641]
[1750081610269,0.76208,2623.9,2623.6,4.60446]
[1750081610473,0.76212,2623.8,2623.6,3.8423]
[1750081610765,1.341,2624.2,2623.6,3.8423]
[1750081610965,4.17868862,2623.7,2623.3,3.2078]
[1750081611165,4.17868862,2623.5,2623.3,3.97005]
[1750081611371,4.17868862,2623.5,2623.4,0.76223]
[1750081611673,4.17868862,2623.5,2623.3,3.2078]
[1750081611674,0.00570961,2623.7,2623.3,3.2078]
[1750081611866,4.17868862,2623.6,2623.3,3.2078]
[1750081612062,0.00570961,2623.7,2623.3,3.2078]
[1750081612363,13.3516534,2624.8,2623.3,3.2078]
[1750081612364,0.06737406,2625.0,2623.6,3.2078]
[1750081612669,4.17868862,2624.1,2624.0,3.2078]
[1750081612861,4.17868862,2624.1,2624.0,3.96985]
[1750081613064,1.2516,2624.5,2624.0,3.2078]
[1750081613259,4.17868862,2624.1,2624.0,3.97555961]
[1750081613662,4.17868862,2624.1,2624.0,0.00570961]
[1750081613972,4.17868862,2624.1,2624.0,3.97555961]
[1750081614172,0.6247,2624.4,2624.1,0.76203]
[1750081614374,4.94067862,2624.3,2624.1,0.76203]
[1750081614668,4.94066862,2624.3,2624.1,0.76201]
[1750081614875,4.17868862,2624.3,2624.0,3.21350961]
[1750081615071,4.17868862,2624.3,2624.2,0.762]
[1750081615768,0.00570961,2624.5,2624.4,0.76194]
[1750081615966,0.00570961,2624.5,2624.4,3.96974]
[1750081616176,0.06737406,2625.0,2624.5,1.90474]
[1750081616365,0.06737406,2625.0,2624.9,0.76179]
[1750081616567,1.9097,2625.6,2624.8,3.2078]
[1750081616871,4.17868862,2625.6,2624.9,2.47509157]
[1750081617064,4.17868862,2625.2,2625.0,1.12869157]
[1750081617264,4.17868862,2625.2,2624.9,3.2078]
[1750081617466,0.7617,2625.3,2625.1,0.76173]
[1750081617776,4.94039862,2625.2,2625.0,0.76174]
[1750081617970,4.17868862,2625.2,2625.1,0.76174]
[1750081618170,4.17868862,2625.2,2625.0,0.76175]
[1750081618171,4.94039862,2625.2,2625.0,0.76175]
[1750081618370,0.00570961,2625.5,2624.9,3.2078]
[1750081618570,4.17868862,2625.3,2624.9,3.2078]
[1750081618768,0.76171,2625.2,2625.0,0.76176]
[1750081618967,4.17868862,2625.2,2624.9,3.2078]
[1750081619267,0.76185,2624.8,2624.6,3.96968]
[1750081619461,4.94052862,2624.8,2624.6,3.2078]
[1750081619661,1.3365,2625.2,2624.6,3.2078]
[1750081619662,0.76178,2625.0,2624.8,0.76181]
[1750081619870,0.06737406,2625.0,2624.9,3.96959]
[1750081620270,0.06737406,2625.0,2624.9,8.96959]
[1750081620772,0.06737406,2625.0,2624.9,10.09949706]
[1750081621175,0.00570961,2625.5,2625.4,0.76165]
[1750081621372,4.18439823,2625.5,2625.4,3.2078]
[1750081621972,0.00570961,2625.5,2625.4,3.96945]
[1750081622174,0.6388,2626.2,2625.4,10.11193]
[1750081622478,0.76146,2626.1,2625.9,3.2078]
[1750081622674,0.76147,2626.0,2625.9,3.2078]
[1750081622879,0.76159,2625.6,2625.5,3.2078]
[1750081623178,0.76157,2625.7,2625.5,3.96941]
[1750081623375,0.00570961,2625.8,2625.7,0.76156]
[1750081623578,0.00570961,2625.8,2625.7,1.89184141]
[1750081623876,0.76138,2626.4,2626.2,0.7614]
[1750081624179,4.17868862,2626.3,2626.1,3.2078]
[1750081624385,3.2078,2626.6,2625.8,0.6649]
[1750081624386,4.17868862,2626.1,2625.8,3.8727]
[1750081624680,3.24956,2626.5,2626.2,0.76142]
[1750081624681,4.94003862,2626.5,2626.2,0.76142]
[1750081624873,0.82873406,2626.4,2626.3,3.2078]
[1750081625269,1.97079406,2626.4,2625.9,4.516]
[1750081625576,1.90382,2625.9,2625.6,3.2078]
[1750081625769,4.17868862,2625.7,2625.3,0.00570961]
[1750081625972,4.94033862,2625.4,2625.3,0.00570961]
[1750081626671,1.3462,2625.5,2625.3,0.00570961]
[1750081626672,0.76164,2625.5,2625.3,0.00570961]
[1750081626874,4.554,2626.1,2625.3,0.00570961]
[1750081627074,0.76143,2626.2,2625.9,3.2078]
[1750081627268,0.76146,2626.1,2625.9,3.2078]
[1750081627567,0.6432,2626.3,2625.9,3.2078]
[1750081627568,4.94015862,2626.0,2625.9,3.2078]
[1750081627772,0.76157,2625.7,2625.6,3.2078]
[1750081627973,4.17868862,2625.7,2625.6,3.96939]
[1750081628175,4.94024862,2625.7,2625.6,3.2078]
[1750081629278,0.76156,2625.7,2625.6,3.2078]
[1750081629579,0.6217,2626.5,2625.6,9.3380652]
[1750081629774,4.94009862,2626.3,2626.2,3.2078]
[1750081629968,0.6217,2626.5,2626.0,0.76147]
[1750081630168,4.94011862,2626.2,2626.0,0.76147]
[1750081630373,4.94011862,2626.2,2625.9,3.2078]
[1750081630570,1.224,2626.3,2626.0,1.130532]
[1750081630775,4.17868862,2626.0,2625.4,1.5062789]
[1750081631086,4.17868862,2626.0,2625.3,5.48633602]
[1750081631087,0.76165,2625.4,2625.3,3.21350961]
[1750081631273,4.94033862,2625.4,2625.3,3.21350961]
[1750081631674,8.14813862,2625.4,2625.3,0.00570961]
[1750081631883,0.76173,2625.1,2625.0,3.2078]
[1750081632075,0.76173,2625.1,2624.5,2.27282641]
[1750081632076,0.76185,2624.7,2624.6,4.7140789]
[1750081632274,0.76185,2624.7,2624.6,4.33936852]
[1750081633477,0.76185,2624.7,2624.6,5.10124852]
[1750081633678,0.76185,2624.7,2624.6,4.33936852]
[1750081633981,0.76185,2624.7,2624.6,5.10124852]
[1750081634179,9.94053862,2624.7,2624.6,1.13156852]
[1750081634379,0.76191,2624.5,2624.4,0.00570961]
[1750081634582,1.90499,2624.3,2623.7,3.2078]
[1750081634884,0.76207,2624.0,2623.7,3.96994]
[1750081635081,4.17868862,2624.0,2623.7,3.2078]
[1750081635278,0.7621,2623.9,2623.7,3.2078]
[1750081635580,4.17868862,2624.0,2623.7,3.96993]
[1750081635881,0.76209,2623.9,2623.7,3.2078]
[1750081636082,0.76205,2624.1,2623.8,0.7621]
[1750081636283,4.17868862,2624.0,2623.8,0.7621]
[1750081636481,0.76208,2623.9,2623.7,3.96993]
[1750081636875,0.6278,2624.3,2623.7,3.2078]
[1750081637074,1.3468,2624.7,2624.2,3.2078]
[1750081637282,4.17868862,2624.6,2624.2,3.2078]
[1750081637685,0.76192,2624.5,2624.3,0.76195]
[1750081637885,0.76194,2624.4,2624.2,3.96978]
[1750081638086,0.76194,2624.4,2624.3,0.76197]
[1750081638384,0.76193,2624.5,2624.3,0.76197]
[1750081638579,0.76197,2624.3,2624.2,3.2078]
[1750081638784,0.76204,2624.1,2623.9,0.76207]
[1750081638989,3.2078,2624.8,2623.8,3.2078]
[1750081639285,4.17868862,2624.2,2623.9,3.2078]
[1750081639485,0.76203,2624.1,2623.9,3.96986]
[1750081639686,4.94070862,2624.2,2623.9,3.2078]
[1750081639877,4.94070862,2624.2,2624.0,0.76203]
[1750081640188,4.17868862,2624.2,2623.9,3.2078]
[1750081640483,0.76196,2624.4,2624.3,0.76197]
[1750081640678,0.76196,2624.4,2624.3,3.2078]
[1750081640877,0.76193,2624.5,2624.3,3.2078]
[1750081641078,0.76194,2624.4,2624.3,3.2078]
[1750081641682,0.76194,2624.4,2624.0,2.7975789]
[1750081641683,0.76205,2624.1,2624.0,3.2078]
[1750081642083,0.82942406,2624.1,2624.0,3.2078]
[1750081642886,5.00811268,2624.1,2624.0,3.2078]
[1750081643090,4.24606268,2624.1,2624.0,3.96985]
[1750081643585,5.00809268,2624.1,2624.0,3.2078]
[1750081643787,0.06737406,2624.1,2624.0,3.96985]
[1750081643981,0.82940406,2624.1,2624.0,3.2078]
[1750081644374,5.00809268,2624.1,2624.0,3.2078]
[1750081644774,0.76214,2623.7,2623.5,1.51198851]
[1750081644978,4.17868862,2623.9,2623.7,0.76213]
[1750081645281,4.17868862,2623.9,2623.8,0.76211]
[1750081645478,0.82942406,2624.1,2623.9,0.76206]
[1750081645681,0.06737406,2624.1,2624.0,0.76205]
[1750081645885,4.24606268,2624.1,2623.7,1.2231]
[1750081646085,4.24606268,2624.1,2623.6,3.2078]
[1750081646086,0.76213,2623.8,2623.6,3.2078]
[1750081646384,0.76214,2623.7,2623.6,3.96997]
[1750081646582,4.94082862,2623.7,2623.6,4.33139784]
[1750081647079,4.17868862,2623.7,2623.6,4.33139784]
[1750081647286,4.94082862,2623.7,2623.6,4.33139784]
[1750081647485,4.94082862,2623.7,2623.6,5.09356784]
[1750081647686,4.94082862,2623.7,2623.6,4.33139784]
[1750081648882,0.76217,2623.6,2623.5,0.00570961]
[1750081649076,15.65969935,2623.6,2623.5,0.00570961]
[1750081649278,6.29215862,2623.6,2623.5,0.00570961]
[1750081649877,5.52998862,2623.6,2623.5,0.00570961]
[1750081650093,0.76207,2624.0,2623.6,1.90541]
[1750081650384,0.71847406,2624.1,2623.5,0.00570961]
[1750081650385,4.94076862,2623.9,2623.8,3.2078]
[1750081650586,0.76208,2623.9,2623.8,3.96991]
[1750081650892,4.94076862,2623.9,2623.8,3.2078]
[1750081651091,0.06737406,2624.1,2623.8,3.2078]
[1750081651389,0.06737406,2624.1,2624.0,0.76205]
[1750081651588,0.06737406,2624.1,2624.0,1.88324259]
[1750081651981,0.76189,2624.6,2624.5,0.76191]
[1750081652382,4.94057862,2624.6,2624.5,0.76191]
[1750081653286,4.94057862,2624.6,2624.5,1.88339646]
[1750081653484,4.94057862,2624.6,2624.5,1.12148646]
[1750081653788,4.94057862,2624.6,2624.1,3.4381789]
[1750081653789,0.76199,2624.2,2624.1,0.76202]
[1750081653990,1.3322,2624.5,2624.1,1.1217527]
[1750081654308,4.24606268,2624.3,2624.2,0.76199]
[1750081654589,5.00803268,2624.3,2624.2,1.88435043]
[1750081654785,5.00803268,2624.3,2624.2,1.12236043]
[1750081654987,0.76199,2624.2,2624.1,3.2078]
[1750081655292,0.76217,2623.6,2623.5,1.13946409]
[1750081655485,4.94085862,2623.6,2623.5,1.12887772]
[1750081655992,4.94085862,2623.6,2623.5,0.00570961]
[1750081657489,4.94085862,2623.6,2623.3,3.2078]
[1750081657490,0.76223,2623.4,2623.3,3.2078]
[1750081657688,4.94091862,2623.4,2623.3,4.33102186]
[1750081658189,8.14871862,2623.4,2623.3,1.12322186]
[1750081658383,0.76231,2623.1,2623.0,1.13375448]
[1750081658584,4.94099862,2623.1,2623.0,1.13375448]
[1750081659693,0.76236,2623.0,2622.8,5.10964409]
[1750081659892,4.17868862,2622.9,2622.8,5.10964409]
[1750081660094,4.94105862,2622.9,2622.8,4.34726409]
[1750081660793,4.94105862,2622.9,2622.8,0.00570961]
[1750081661996,0.00570961,2623.3,2623.2,0.76228]
[1750081662188,4.18439823,2623.3,2623.2,3.2078]
[1750081662389,4.94665823,2623.3,2623.2,3.2078]
[1750081662591,4.18439823,2623.3,2623.2,3.97008]
[1750081663089,0.76237,2622.9,2622.8,0.00570961]
[1750081663293,0.76237,2622.9,2622.6,3.02610753]
[1750081663294,3.80328313,2622.7,2622.6,3.02610753]
[1750081663493,0.76249,2622.5,2622.4,1.5062789]
[1750081663694,13.17088386,2622.5,2622.4,1.5062789]
[1750081663893,0.76269,2621.8,2621.7,3.79555136]
[1750081664197,0.76269,2621.8,2621.3,3.2078]
[1750081664198,3.04085313,2621.8,2621.3,3.97061]
[1750081664494,3.04085313,2621.6,2621.3,4.4633]
[1750081664794,0.76281,2621.4,2621.3,3.2078]
[1750081664998,3.80366313,2621.4,2621.3,3.2078]
[1750081665293,3.80366313,2621.4,2620.9,1.9217]
[1750081665294,3.04085313,2621.4,2621.0,3.2078]
[1750081665494,0.7629,2621.1,2621.0,3.2078]
[1750081665894,1.2892,2621.3,2621.0,3.9707]
[1750081666200,0.7629,2621.1,2621.0,3.2078]
[1750081666603,3.04085313,2621.2,2621.0,3.2078]
[1750081666604,1.2892,2621.5,2621.0,3.2078]
[1750081666901,3.80374313,2621.2,2621.0,3.2078]
[1750081667093,0.7629,2621.1,2621.0,3.2078]
[1750081667294,3.80375313,2621.1,2621.0,3.2078]
[1750081669791,3.80375313,2621.1,2620.5,3.2078]
[1750081669792,0.76302,2620.7,2620.5,3.2078]
[1750081669991,3.04085313,2620.7,2620.3,0.6777]
[1750081670194,1.3549,2621.0,2620.2,3.2078]
[1750081670195,0.76313,2620.3,2620.2,3.2078]
[1750081670393,1.90797,2620.1,2619.3,3.2078]
[1750081670592,6.24865313,2620.3,2619.3,3.2078]
[1750081670593,0.76339,2619.4,2619.3,3.2078]